[Event "Titled Tuesday Blitz October 25 Late 2022"]
[White "Richter, Paul"]
[Black "Roberts, Paul"]
[WhiteFideId "2046350"]
[BlackFideId "2400600"]
[WhiteElo "2593"]
[BlackElo "2112"]
[Result "1-0"]
[Round "01"]
[TimeControl "180+1"]
[Date "2022.10.26"]
[WhiteClock "0:00:06"]
[BlackClock "0:00:44"]

1. e4 {[%clk 0:03:00]}  c5 {[%clk 0:03:00]} 2. Nf3 {[%clk 0:02:58]}  e6 {[%clk 0:03:00]} 3. d3 {[%clk 0:02:54]}  Nc6 {[%clk 0:02:59]} 4. Nbd2 {[%clk 0:02:51]}  g6 {[%clk 0:02:59]} 5. g3 {[%clk 0:02:50]}  Bg7 {[%clk 0:03:00]} 6. Bg2 {[%clk 0:02:49]}  Nge7 {[%clk 0:03:00]} 7. O-O {[%clk 0:02:49]}  O-O {[%clk 0:03:00]} 8. Re1 {[%clk 0:02:50]}  e5 {[%clk 0:03:00]} 9. Nc4 {[%clk 0:02:47]}  d6 {[%clk 0:03:00]} 10. a4 {[%clk 0:02:47]}  a6 {[%clk 0:02:58]} 11. a5 {[%clk 0:02:33]}  h6 {[%clk 0:02:57]} 12. Bd2 {[%clk 0:02:25]}  f5 {[%clk 0:02:57]} 13. Nb6 {[%clk 0:02:23]}  Rb8 {[%clk 0:02:56]} 14. Nxc8 {[%clk 0:02:21]}  Rxc8 {[%clk 0:02:52]} 15. exf5 {[%clk 0:02:20]}  gxf5 {[%clk 0:02:48]} 16. c4 {[%clk 0:02:14]}  Nd4 {[%clk 0:02:38]} 17. Nxd4 {[%clk 0:02:12]}  cxd4 {[%clk 0:02:38]} 18. Qh5 {[%clk 0:01:28]}  Qe8 {[%clk 0:02:19]} 19. Qxe8 {[%clk 0:01:26]}  Rfxe8 {[%clk 0:02:19]} 20. Bxb7 {[%clk 0:01:23]}  Rb8 {[%clk 0:02:19]} 21. Bxa6 {[%clk 0:01:23]}  Rxb2 {[%clk 0:02:19]} 22. Bc1 {[%clk 0:01:11]}  Rb3 {[%clk 0:02:19]} 23. Ra3 {[%clk 0:00:58]}  Rxa3 {[%clk 0:02:17]} 24. Bxa3 {[%clk 0:00:59]}  Ra8 {[%clk 0:02:16]} 25. Bb5 {[%clk 0:00:52]}  Rxa5 {[%clk 0:02:15]} 26. Bxd6 {[%clk 0:00:51]}  Ng6 {[%clk 0:02:12]} 27. Bd7 {[%clk 0:00:36]}  f4 {[%clk 0:02:08]} 28. c5 {[%clk 0:00:32]}  Bf8 {[%clk 0:02:05]} 29. Be6+ {[%clk 0:00:27]}  Kg7 {[%clk 0:02:04]} 30. gxf4 {[%clk 0:00:12]}  Bxd6 {[%clk 0:02:03]} 31. cxd6 {[%clk 0:00:12]}  Nxf4 {[%clk 0:02:01]} 32. Bf5 {[%clk 0:00:11]}  Rd5 {[%clk 0:01:57]} 33. d7 {[%clk 0:00:10]}  Kf6 {[%clk 0:01:54]} 34. Be4 {[%clk 0:00:06]}  Rxd7 {[%clk 0:01:54]} 35. Rb1 {[%clk 0:00:06]}  Rg7+ {[%clk 0:01:52]} 36. Kf1 {[%clk 0:00:07]}  Nh3 {[%clk 0:01:47]} 37. Rb6+ {[%clk 0:00:07]}  Ke7 {[%clk 0:01:47]} 38. Rxh6 {[%clk 0:00:06]}  Rg1+ {[%clk 0:01:44]} 39. Ke2 {[%clk 0:00:07]}  Nf4+ {[%clk 0:01:44]} 40. Kf3 {[%clk 0:00:07]}  Kf7 {[%clk 0:01:40]} 41. Rh7+ {[%clk 0:00:07]}  Kg8 {[%clk 0:01:38]} 42. Re7 {[%clk 0:00:06]}  Rh1 {[%clk 0:01:34]} 43. Rxe5 {[%clk 0:00:05]}  Nh3 {[%clk 0:01:22]} 44. Rh5 {[%clk 0:00:04]}  Rxh2 {[%clk 0:01:19]} 45. Kg3 {[%clk 0:00:03]}  Rxf2 {[%clk 0:01:13]} 46. Rxh3 {[%clk 0:00:03]}  Rd2 {[%clk 0:01:12]} 47. Kg4 {[%clk 0:00:04]}  Kg7 {[%clk 0:01:12]} 48. Kf4 {[%clk 0:00:04]}  Kf6 {[%clk 0:01:12]} 49. Rh5 {[%clk 0:00:04]}  Rf2+ {[%clk 0:01:10]} 50. Bf3 {[%clk 0:00:05]}  Rd2 {[%clk 0:01:10]} 51. Rf5+ {[%clk 0:00:05]}  Ke6 {[%clk 0:01:09]} 52. Re5+ {[%clk 0:00:05]}  Kd6 {[%clk 0:01:10]} 53. Rd5+ {[%clk 0:00:06]}  Ke6 {[%clk 0:01:06]} 54. Rxd4 {[%clk 0:00:06]}  Ra2 {[%clk 0:01:05]} 55. Ke3 {[%clk 0:00:06]}  Ke5 {[%clk 0:01:05]} 56. Be4 {[%clk 0:00:07]}  Rh2 {[%clk 0:01:03]} 57. Rd5+ {[%clk 0:00:08]}  Ke6 {[%clk 0:01:03]} 58. Ra5 {[%clk 0:00:08]}  Rh3+ {[%clk 0:01:02]} 59. Kd4 {[%clk 0:00:09]}  Rg3 {[%clk 0:01:02]} 60. Ra6+ {[%clk 0:00:09]}  Ke7 {[%clk 0:01:01]} 61. Ke5 {[%clk 0:00:09]}  Rg5+ {[%clk 0:01:01]} 62. Bf5 {[%clk 0:00:10]}  Rg3 {[%clk 0:01:01]} 63. Ra7+ {[%clk 0:00:10]}  Kf8 {[%clk 0:01:00]} 64. d4 {[%clk 0:00:10]}  Re3+ {[%clk 0:01:00]} 65. Kf6 {[%clk 0:00:11]}  Re8 {[%clk 0:00:55]} 66. d5 {[%clk 0:00:07]}  Rd8 {[%clk 0:00:55]} 67. Be6 {[%clk 0:00:07]}  Ke8 {[%clk 0:00:50]} 68. Rh7 {[%clk 0:00:07]}  Rxd5 {[%clk 0:00:44]} 69. Rh8# {[%clk 0:00:06]} 1-0


[Site "https://www.chess.com"]

[Event "Titled Tuesday Blitz October 25 Late 2022"]
[White "Roman, Rodrigo"]
[Black "Milikow, Yoav"]
[WhiteFideId "3701220"]
[BlackFideId "2822237"]
[WhiteElo "2001"]
[BlackElo "2341"]
[Result "0-1"]
[Round "01"]
[TimeControl "180+1"]
[Date "2022.10.26"]
[WhiteClock "0:00:02"]
[BlackClock "0:00:47"]

1. e4 {[%clk 0:03:00]}  e5 {[%clk 0:02:59]} 2. Nf3 {[%clk 0:02:57]}  Nc6 {[%clk 0:02:57]} 3. Bb5 {[%clk 0:02:57]}  a6 {[%clk 0:02:53]} 4. Ba4 {[%clk 0:02:56]}  Nge7 {[%clk 0:02:50]} 5. c3 {[%clk 0:02:51]}  g6 {[%clk 0:02:50]} 6. d4 {[%clk 0:02:49]}  exd4 {[%clk 0:02:48]} 7. Nxd4 {[%clk 0:02:48]}  Bg7 {[%clk 0:02:48]} 8. Be3 {[%clk 0:02:46]}  b5 {[%clk 0:02:46]} 9. Bb3 {[%clk 0:02:45]}  Na5 {[%clk 0:02:40]} 10. h4 {[%clk 0:02:19]}  h5 {[%clk 0:02:34]} 11. Bc2 {[%clk 0:02:02]}  Nc4 {[%clk 0:02:24]} 12. Bc1 {[%clk 0:02:01]}  d6 {[%clk 0:02:22]} 13. b3 {[%clk 0:01:58]}  Ne5 {[%clk 0:02:19]} 14. f3 {[%clk 0:01:51]}  O-O {[%clk 0:02:17]} 15. Bg5 {[%clk 0:01:43]}  Qe8 {[%clk 0:02:09]} 16. Qc1 {[%clk 0:01:39]}  c5 {[%clk 0:02:05]} 17. Ne2 {[%clk 0:01:39]}  Kh7 {[%clk 0:02:01]} 18. Qd2 {[%clk 0:01:29]}  d5 {[%clk 0:01:53]} 19. exd5 {[%clk 0:01:26]}  Nf5 {[%clk 0:01:41]} 20. Na3 {[%clk 0:01:00]}  b4 {[%clk 0:01:39]} 21. cxb4 {[%clk 0:00:40]}  cxb4 {[%clk 0:01:37]} 22. Qxb4 {[%clk 0:00:40]}  Nd4 {[%clk 0:01:33]} 23. Qe7 {[%clk 0:00:21]}  Nxe2 {[%clk 0:01:14]} 24. Kxe2 {[%clk 0:00:20]}  Qxe7 {[%clk 0:00:59]} 25. Bxe7 {[%clk 0:00:20]}  Re8 {[%clk 0:01:00]} 26. d6 {[%clk 0:00:20]}  Nc6 {[%clk 0:00:59]} 27. Rac1 {[%clk 0:00:18]}  Nxe7 {[%clk 0:00:59]} 28. dxe7 {[%clk 0:00:19]}  Bb2 {[%clk 0:00:58]} 29. Nc4 {[%clk 0:00:17]}  Rxe7+ {[%clk 0:00:57]} 30. Kf2 {[%clk 0:00:15]}  Bxc1 {[%clk 0:00:58]} 31. Rxc1 {[%clk 0:00:15]}  Be6 {[%clk 0:00:58]} 32. Be4 {[%clk 0:00:14]}  Rc8 {[%clk 0:00:57]} 33. Kg3 {[%clk 0:00:08]}  Rec7 {[%clk 0:00:56]} 34. Bd3 {[%clk 0:00:08]}  Kg7 {[%clk 0:00:54]} 35. Kf4 {[%clk 0:00:08]}  Rd8 {[%clk 0:00:54]} 36. Be2 {[%clk 0:00:07]}  Rd2 {[%clk 0:00:52]} 37. Nxd2 {[%clk 0:00:04]}  Rxc1 {[%clk 0:00:53]} 38. Bxa6 {[%clk 0:00:03]}  Rc2 {[%clk 0:00:53]} 39. Ke3 {[%clk 0:00:04]}  Rxa2 {[%clk 0:00:53]} 40. Bc4 {[%clk 0:00:04]}  Bd7 {[%clk 0:00:51]} 41. g3 {[%clk 0:00:04]}  Rb2 {[%clk 0:00:50]} 42. f4 {[%clk 0:00:03]}  Bc6 {[%clk 0:00:50]} 43. Kd3 {[%clk 0:00:03]}  Ra2 {[%clk 0:00:50]} 44. Kc3 {[%clk 0:00:03]}  Ra1 {[%clk 0:00:49]} 45. b4 {[%clk 0:00:04]}  Rg1 {[%clk 0:00:49]} 46. b5 {[%clk 0:00:05]}  Rxg3+ {[%clk 0:00:49]} 47. Kd4 {[%clk 0:00:05]}  Bb7 {[%clk 0:00:49]} 48. Kc5 {[%clk 0:00:05]}  Rg4 {[%clk 0:00:49]} 49. Kb6 {[%clk 0:00:02]}  Bh1 {[%clk 0:00:46]} 50. Ka6 {[%clk 0:00:02]}  Rxf4 {[%clk 0:00:47]} 51. b6 {[%clk 0:00:03]}  Rxh4 {[%clk 0:00:46]} 52. b7 {[%clk 0:00:01]}  Bxb7+ {[%clk 0:00:46]} 53. Kxb7 {[%clk 0:00:02]}  Rd4 {[%clk 0:00:47]} 0-1


[Site "https://www.chess.com"]

[Event "Titled Tuesday Blitz October 25 Late 2022"]
[White "Rosenberg, Evan S"]
[Black "Goltsev, Dmitry"]
[WhiteFideId "2019299"]
[BlackFideId "24176710"]
[WhiteElo "2373"]
[BlackElo "2257"]
[Result "0-1"]
[Round "01"]
[TimeControl "180+1"]
[Date "2022.10.26"]
[WhiteClock "0:00:50"]
[BlackClock "0:02:33"]

1. d4 {[%clk 0:02:59]}  Nf6 {[%clk 0:02:59]} 2. Nf3 {[%clk 0:02:59]}  e6 {[%clk 0:03:00]} 3. g3 {[%clk 0:02:59]}  d5 {[%clk 0:03:01]} 4. Bg2 {[%clk 0:02:58]}  c5 {[%clk 0:03:02]} 5. O-O {[%clk 0:02:57]}  Nc6 {[%clk 0:03:03]} 6. c4 {[%clk 0:02:53]}  Be7 {[%clk 0:03:02]} 7. dxc5 {[%clk 0:02:53]}  Bxc5 {[%clk 0:03:02]} 8. Bg5 {[%clk 0:02:48]}  dxc4 {[%clk 0:03:00]} 9. Qxd8+ {[%clk 0:02:42]}  Kxd8 {[%clk 0:03:01]} 10. Nbd2 {[%clk 0:02:38]}  h6 {[%clk 0:03:01]} 11. Bxf6+ {[%clk 0:02:37]}  gxf6 {[%clk 0:03:02]} 12. Nxc4 {[%clk 0:02:38]}  Ke7 {[%clk 0:03:03]} 13. Rac1 {[%clk 0:02:37]}  Bd7 {[%clk 0:03:02]} 14. Rfd1 {[%clk 0:02:31]}  Rac8 {[%clk 0:02:59]} 15. e3 {[%clk 0:02:25]}  Rhd8 {[%clk 0:02:57]} 16. a3 {[%clk 0:02:21]}  Be8 {[%clk 0:02:56]} 17. Rxd8 {[%clk 0:02:18]}  Rxd8 {[%clk 0:02:57]} 18. b4 {[%clk 0:02:14]}  Bd6 {[%clk 0:02:56]} 19. Nxd6 {[%clk 0:02:11]}  Rxd6 {[%clk 0:02:57]} 20. b5 {[%clk 0:02:10]}  Na5 {[%clk 0:02:56]} 21. a4 {[%clk 0:02:06]}  Nb3 {[%clk 0:02:55]} 22. Rc7+ {[%clk 0:02:06]}  Rd7 {[%clk 0:02:53]} 23. Rxd7+ {[%clk 0:02:02]}  Bxd7 {[%clk 0:02:54]} 24. Nd4 {[%clk 0:01:53]}  Nc5 {[%clk 0:02:54]} 25. a5 {[%clk 0:01:47]}  e5 {[%clk 0:02:54]} 26. a6 {[%clk 0:01:34]}  exd4 {[%clk 0:02:48]} 27. axb7 {[%clk 0:01:33]}  Nxb7 {[%clk 0:02:48]} 28. Bxb7 {[%clk 0:01:33]}  dxe3 {[%clk 0:02:48]} 29. fxe3 {[%clk 0:01:33]}  Bxb5 {[%clk 0:02:49]} 30. Kf2 {[%clk 0:01:30]}  Kd6 {[%clk 0:02:49]} 31. Bf3 {[%clk 0:01:23]}  a5 {[%clk 0:02:49]} 32. Ke1 {[%clk 0:01:21]}  Bc6 {[%clk 0:02:47]} 33. Bh5 {[%clk 0:01:20]}  Bd5 {[%clk 0:02:46]} 34. Kd2 {[%clk 0:01:21]}  Ke5 {[%clk 0:02:46]} 35. Bd1 {[%clk 0:01:16]}  Ke4 {[%clk 0:02:45]} 36. g4 {[%clk 0:01:08]}  Be6 {[%clk 0:02:41]} 37. h3 {[%clk 0:01:06]}  f5 {[%clk 0:02:37]} 38. Bc2+ {[%clk 0:01:04]}  Ke5 {[%clk 0:02:35]} 39. Bd1 {[%clk 0:00:58]}  fxg4 {[%clk 0:02:34]} 40. hxg4 {[%clk 0:00:58]}  Ke4 {[%clk 0:02:33]} 41. Bc2+ {[%clk 0:00:49]}  Kf3 {[%clk 0:02:33]} 42. Bd1+ {[%clk 0:00:50]}  Kg3 {[%clk 0:02:33]} 0-1


[Site "https://www.chess.com"]

[Event "Titled Tuesday Blitz October 25 Late 2022"]
[White "Sanal, Vahap"]
[Black "Poltorak, Sebastian"]
[WhiteFideId "6300545"]
[BlackFideId "1199498"]
[WhiteElo "2574"]
[BlackElo "2232"]
[Result "1-0"]
[Round "01"]
[TimeControl "180+1"]
[Date "2022.10.26"]
[WhiteClock "0:00:05"]
[BlackClock "0:00:08"]

1. Nf3 {[%clk 0:03:00]}  c5 {[%clk 0:02:57]} 2. b3 {[%clk 0:02:58]}  Nc6 {[%clk 0:02:57]} 3. Bb2 {[%clk 0:02:56]}  d5 {[%clk 0:02:55]} 4. e3 {[%clk 0:02:53]}  Bf5 {[%clk 0:02:54]} 5. Bb5 {[%clk 0:02:52]}  Rc8 {[%clk 0:02:51]} 6. O-O {[%clk 0:02:51]}  a6 {[%clk 0:02:50]} 7. Be2 {[%clk 0:02:49]}  Nf6 {[%clk 0:02:48]} 8. d3 {[%clk 0:02:48]}  e6 {[%clk 0:02:47]} 9. Nh4 {[%clk 0:02:48]}  Bg6 {[%clk 0:02:47]} 10. Nd2 {[%clk 0:02:48]}  Bd6 {[%clk 0:02:46]} 11. Qe1 {[%clk 0:02:38]}  Nb4 {[%clk 0:02:34]} 12. Qd1 {[%clk 0:02:11]}  b5 {[%clk 0:02:03]} 13. g3 {[%clk 0:02:06]}  O-O {[%clk 0:01:55]} 14. a3 {[%clk 0:02:02]}  Nc6 {[%clk 0:01:55]} 15. f4 {[%clk 0:02:03]}  Qc7 {[%clk 0:01:47]} 16. Qe1 {[%clk 0:01:57]}  h6 {[%clk 0:01:45]} 17. g4 {[%clk 0:01:50]}  e5 {[%clk 0:01:40]} 18. f5 {[%clk 0:01:47]}  Bh7 {[%clk 0:01:40]} 19. Qf2 {[%clk 0:01:45]}  Rfe8 {[%clk 0:01:32]} 20. Qg2 {[%clk 0:01:45]}  d4 {[%clk 0:01:29]} 21. e4 {[%clk 0:01:41]}  Be7 {[%clk 0:01:19]} 22. Nhf3 {[%clk 0:01:40]}  Na5 {[%clk 0:01:07]} 23. h4 {[%clk 0:01:40]}  Kh8 {[%clk 0:01:01]} 24. Bc1 {[%clk 0:01:37]}  c4 {[%clk 0:00:57]} 25. b4 {[%clk 0:01:27]}  cxd3 {[%clk 0:00:57]} 26. cxd3 {[%clk 0:01:21]}  Nb7 {[%clk 0:00:53]} 27. Nb3 {[%clk 0:00:49]}  Qc2 {[%clk 0:00:48]} 28. Nfd2 {[%clk 0:00:37]}  g5 {[%clk 0:00:38]} 29. fxg6 {[%clk 0:00:34]}  fxg6 {[%clk 0:00:38]} 30. g5 {[%clk 0:00:33]}  Nh5 {[%clk 0:00:39]} 31. Bd1 {[%clk 0:00:19]}  Qxd3 {[%clk 0:00:32]} 32. Rf3 {[%clk 0:00:18]}  Nf4 {[%clk 0:00:21]} 33. Rxd3 {[%clk 0:00:17]}  Nxg2 {[%clk 0:00:22]} 34. Kxg2 {[%clk 0:00:17]}  hxg5 {[%clk 0:00:22]} 35. Nf3 {[%clk 0:00:16]}  gxh4 {[%clk 0:00:20]} 36. Nxe5 {[%clk 0:00:16]}  Nd6 {[%clk 0:00:17]} 37. Rxd4 {[%clk 0:00:14]}  Bf6 {[%clk 0:00:15]} 38. Bf4 {[%clk 0:00:10]}  Nc4 {[%clk 0:00:15]} 39. Nxc4 {[%clk 0:00:06]}  Bxd4 {[%clk 0:00:14]} 40. Nxd4 {[%clk 0:00:06]}  bxc4 {[%clk 0:00:11]} 41. Bg5 {[%clk 0:00:06]}  Rxe4 {[%clk 0:00:10]} 42. Bf3 {[%clk 0:00:06]}  Ree8 {[%clk 0:00:09]} 43. Bf6+ {[%clk 0:00:06]}  Kg8 {[%clk 0:00:09]} 44. Bd5+ {[%clk 0:00:06]}  Kf8 {[%clk 0:00:10]} 45. Rf1 {[%clk 0:00:05]}  Re2+ {[%clk 0:00:08]} 46. Kh3 {[%clk 0:00:05]} 1-0


[Site "https://www.chess.com"]

[Event "Titled Tuesday Blitz October 25 Late 2022"]
[White "Sarana, Alexey"]
[Black "Bilan, Danila"]
[WhiteFideId "24133795"]
[BlackFideId "24161918"]
[WhiteElo "2689"]
[BlackElo "2203"]
[Result "1-0"]
[Round "01"]
[TimeControl "180+1"]
[Date "2022.10.26"]
[WhiteClock "0:00:53"]
[BlackClock "0:00:36"]

1. c4 {[%clk 0:02:55]}  c6 {[%clk 0:02:58]} 2. e4 {[%clk 0:02:53]}  d5 {[%clk 0:02:59]} 3. exd5 {[%clk 0:02:54]}  cxd5 {[%clk 0:02:59]} 4. d4 {[%clk 0:02:55]}  Nf6 {[%clk 0:02:59]} 5. Nc3 {[%clk 0:02:56]}  Nc6 {[%clk 0:02:59]} 6. Bg5 {[%clk 0:02:55]}  e6 {[%clk 0:02:56]} 7. Nf3 {[%clk 0:02:48]}  Be7 {[%clk 0:02:55]} 8. c5 {[%clk 0:02:48]}  Ne4 {[%clk 0:02:51]} 9. Bxe7 {[%clk 0:02:48]}  Qxe7 {[%clk 0:02:52]} 10. Bb5 {[%clk 0:02:44]}  Bd7 {[%clk 0:02:47]} 11. O-O {[%clk 0:02:44]}  Nxc3 {[%clk 0:02:44]} 12. bxc3 {[%clk 0:02:43]}  O-O {[%clk 0:02:45]} 13. Bxc6 {[%clk 0:02:29]}  Bxc6 {[%clk 0:02:42]} 14. Ne5 {[%clk 0:02:29]}  Bb5 {[%clk 0:02:41]} 15. Re1 {[%clk 0:02:27]}  b6 {[%clk 0:02:34]} 16. Rb1 {[%clk 0:02:27]}  Bc4 {[%clk 0:02:15]} 17. Nxc4 {[%clk 0:02:02]}  dxc4 {[%clk 0:02:15]} 18. cxb6 {[%clk 0:01:48]}  axb6 {[%clk 0:02:15]} 19. Rxb6 {[%clk 0:01:49]}  Rxa2 {[%clk 0:02:12]} 20. Rc6 {[%clk 0:01:49]}  Qf6 {[%clk 0:01:46]} 21. Qf3 {[%clk 0:01:48]}  Qxf3 {[%clk 0:01:31]} 22. gxf3 {[%clk 0:01:49]}  g6 {[%clk 0:01:24]} 23. Rb1 {[%clk 0:01:23]}  Rc2 {[%clk 0:01:23]} 24. Rxc4 {[%clk 0:00:54]}  Ra8 {[%clk 0:01:21]} 25. Rb7 {[%clk 0:00:53]}  Raa2 {[%clk 0:01:16]} 26. Rc8+ {[%clk 0:00:53]}  Kg7 {[%clk 0:01:16]} 27. Rcc7 {[%clk 0:00:53]}  Rxf2 {[%clk 0:01:11]} 28. Rxf7+ {[%clk 0:00:53]}  Kh6 {[%clk 0:01:11]} 29. h4 {[%clk 0:00:54]}  Rg2+ {[%clk 0:00:56]} 30. Kf1 {[%clk 0:00:54]}  Rgf2+ {[%clk 0:00:55]} 31. Ke1 {[%clk 0:00:54]}  g5 {[%clk 0:00:36]} 32. Rf6+ {[%clk 0:00:53]} 1-0


[Site "https://www.chess.com"]

[Event "Titled Tuesday Blitz October 25 Late 2022"]
[White "Sivakumar, Shaaketh"]
[Black "Lindholt, Malik"]
[WhiteFideId "30940176"]
[BlackFideId "1404490"]
[WhiteElo "2174"]
[BlackElo "1984"]
[Result "1-0"]
[Round "01"]
[TimeControl "180+1"]
[Date "2022.10.26"]
[WhiteClock "0:00:17"]
[BlackClock "0:00:57"]

1. d4 {[%clk 0:03:00]}  Nf6 {[%clk 0:02:59]} 2. Nf3 {[%clk 0:03:00]}  g6 {[%clk 0:02:58]} 3. c4 {[%clk 0:02:43]}  Bg7 {[%clk 0:02:58]} 4. Nc3 {[%clk 0:02:44]}  O-O {[%clk 0:02:57]} 5. g3 {[%clk 0:02:44]}  d6 {[%clk 0:02:56]} 6. Bg2 {[%clk 0:02:41]}  Nc6 {[%clk 0:02:57]} 7. O-O {[%clk 0:02:41]}  a6 {[%clk 0:02:57]} 8. e4 {[%clk 0:02:39]}  Rb8 {[%clk 0:02:57]} 9. h3 {[%clk 0:02:38]}  b5 {[%clk 0:02:50]} 10. d5 {[%clk 0:02:38]}  Na5 {[%clk 0:02:48]} 11. cxb5 {[%clk 0:02:38]}  axb5 {[%clk 0:02:48]} 12. Nd4 {[%clk 0:02:37]}  Bd7 {[%clk 0:02:45]} 13. b3 {[%clk 0:02:35]}  b4 {[%clk 0:02:43]} 14. Nce2 {[%clk 0:02:35]}  c5 {[%clk 0:02:43]} 15. dxc6 {[%clk 0:02:35]}  Nxc6 {[%clk 0:02:43]} 16. Bb2 {[%clk 0:02:36]}  Qb6 {[%clk 0:02:26]} 17. Rc1 {[%clk 0:02:30]}  Rfc8 {[%clk 0:02:26]} 18. Qd2 {[%clk 0:02:29]}  Qa6 {[%clk 0:02:20]} 19. Ba1 {[%clk 0:02:17]}  Nxd4 {[%clk 0:02:06]} 20. Nxd4 {[%clk 0:02:18]}  Rxc1 {[%clk 0:01:57]} 21. Rxc1 {[%clk 0:02:19]}  Qb6 {[%clk 0:01:55]} 22. Ne2 {[%clk 0:02:04]}  Bc6 {[%clk 0:01:54]} 23. Qd3 {[%clk 0:02:01]}  Qb7 {[%clk 0:01:53]} 24. Rxc6 {[%clk 0:01:51]}  Qxc6 {[%clk 0:01:50]} 25. e5 {[%clk 0:01:52]}  Qb5 {[%clk 0:01:46]} 26. Qxb5 {[%clk 0:01:51]}  Rxb5 {[%clk 0:01:46]} 27. exf6 {[%clk 0:01:52]}  Bxf6 {[%clk 0:01:45]} 28. Bxf6 {[%clk 0:01:51]}  exf6 {[%clk 0:01:46]} 29. Nd4 {[%clk 0:01:51]}  Ra5 {[%clk 0:01:45]} 30. Nc6 {[%clk 0:01:51]}  Rxa2 {[%clk 0:01:45]} 31. Nxb4 {[%clk 0:01:52]}  Rb2 {[%clk 0:01:45]} 32. Bd5 {[%clk 0:01:52]}  Kf8 {[%clk 0:01:44]} 33. Nc6 {[%clk 0:01:52]}  Ke8 {[%clk 0:01:43]} 34. b4 {[%clk 0:01:51]}  Kd7 {[%clk 0:01:39]} 35. Kg2 {[%clk 0:01:42]}  f5 {[%clk 0:01:38]} 36. h4 {[%clk 0:01:42]}  f6 {[%clk 0:01:38]} 37. Kf3 {[%clk 0:01:37]}  g5 {[%clk 0:01:38]} 38. hxg5 {[%clk 0:01:33]}  fxg5 {[%clk 0:01:38]} 39. Ke3 {[%clk 0:01:33]}  h5 {[%clk 0:01:37]} 40. f4 {[%clk 0:01:31]}  h4 {[%clk 0:01:35]} 41. gxh4 {[%clk 0:01:09]}  gxh4 {[%clk 0:01:35]} 42. Nd4 {[%clk 0:01:08]}  h3 {[%clk 0:01:33]} 43. b5 {[%clk 0:00:56]}  h2 {[%clk 0:01:33]} 44. Bc6+ {[%clk 0:00:55]}  Kc7 {[%clk 0:01:31]} 45. Nxf5 {[%clk 0:00:54]}  Rb1 {[%clk 0:01:30]} 46. Ng3 {[%clk 0:00:53]}  Re1+ {[%clk 0:01:30]} 47. Kf2 {[%clk 0:00:52]}  Rg1 {[%clk 0:01:26]} 48. f5 {[%clk 0:00:49]}  Ra1 {[%clk 0:01:19]} 49. f6 {[%clk 0:00:47]}  Kd8 {[%clk 0:01:16]} 50. Kg2 {[%clk 0:00:39]}  Ra2+ {[%clk 0:01:16]} 51. Kh3 {[%clk 0:00:38]}  Rb2 {[%clk 0:01:14]} 52. Kg4 {[%clk 0:00:28]}  Rd2 {[%clk 0:01:13]} 53. Kh5 {[%clk 0:00:26]}  d5 {[%clk 0:01:13]} 54. b6 {[%clk 0:00:19]}  Rg2 {[%clk 0:01:10]} 55. Nh1 {[%clk 0:00:19]}  Rg1 {[%clk 0:01:09]} 56. Bxd5 {[%clk 0:00:19]}  Rf1 {[%clk 0:01:08]} 57. f7 {[%clk 0:00:19]}  Ke7 {[%clk 0:01:05]} 58. b7 {[%clk 0:00:18]}  Rb1 {[%clk 0:01:04]} 59. Kg6 {[%clk 0:00:18]}  Kf8 {[%clk 0:01:04]} 60. Kf6 {[%clk 0:00:18]}  Rf1+ {[%clk 0:01:03]} 61. Ke5 {[%clk 0:00:18]}  Re1+ {[%clk 0:01:04]} 62. Kd6 {[%clk 0:00:18]}  Rb1 {[%clk 0:01:03]} 63. Kc7 {[%clk 0:00:18]}  Rc1+ {[%clk 0:01:03]} 64. Bc6 {[%clk 0:00:18]}  Kxf7 {[%clk 0:01:00]} 65. b8=Q {[%clk 0:00:18]}  Rxc6+ {[%clk 0:00:56]} 66. Kxc6 {[%clk 0:00:17]}  Kf6 {[%clk 0:00:56]} 67. Qxh2 {[%clk 0:00:18]}  Kf5 {[%clk 0:00:57]} 68. Qg3 {[%clk 0:00:18]}  Kf6 {[%clk 0:00:56]} 69. Qg4 {[%clk 0:00:18]}  Kf7 {[%clk 0:00:57]} 70. Qg5 {[%clk 0:00:17]}  Ke8 {[%clk 0:00:57]} 71. Qg7 {[%clk 0:00:16]}  Kd8 {[%clk 0:00:57]} 72. Qd7# {[%clk 0:00:17]} 1-0


[Site "https://www.chess.com"]

[Event "Titled Tuesday Blitz October 25 Late 2022"]
[White "Souleidis, Georgios"]
[Black "Joubert, Dantelle"]
[WhiteFideId "4206827"]
[BlackFideId "14310813"]
[WhiteElo "2401"]
[BlackElo "1507"]
[Result "1-0"]
[Round "01"]
[TimeControl "180+1"]
[Date "2022.10.26"]
[WhiteClock "0:00:47"]
[BlackClock "0:00:03"]

1. e4 {[%clk 0:02:59]}  e5 {[%clk 0:02:58]} 2. Nc3 {[%clk 0:02:59]}  Nf6 {[%clk 0:02:58]} 3. d4 {[%clk 0:02:57]}  exd4 {[%clk 0:02:56]} 4. Qxd4 {[%clk 0:02:58]}  Nc6 {[%clk 0:02:56]} 5. Qd3 {[%clk 0:02:59]}  Bb4 {[%clk 0:02:53]} 6. Bd2 {[%clk 0:02:59]}  O-O {[%clk 0:02:52]} 7. O-O-O {[%clk 0:02:58]}  d6 {[%clk 0:02:50]} 8. Qg3 {[%clk 0:02:55]}  a5 {[%clk 0:02:29]} 9. f3 {[%clk 0:02:54]}  a4 {[%clk 0:02:25]} 10. a3 {[%clk 0:02:53]}  Ba5 {[%clk 0:02:20]} 11. h4 {[%clk 0:02:53]}  Bd7 {[%clk 0:02:12]} 12. h5 {[%clk 0:02:52]}  b5 {[%clk 0:02:09]} 13. h6 {[%clk 0:02:46]}  g6 {[%clk 0:02:06]} 14. Bxb5 {[%clk 0:02:33]}  Ne5 {[%clk 0:01:44]} 15. Bxd7 {[%clk 0:02:10]}  Qxd7 {[%clk 0:01:44]} 16. Bg5 {[%clk 0:01:54]}  Bxc3 {[%clk 0:01:17]} 17. Bxf6 {[%clk 0:01:49]}  Nd3+ {[%clk 0:01:16]} 18. Rxd3 {[%clk 0:01:46]}  Bxf6 {[%clk 0:01:15]} 19. e5 {[%clk 0:01:37]}  Bh8 {[%clk 0:01:11]} 20. Ne2 {[%clk 0:01:35]}  Qb5 {[%clk 0:01:07]} 21. Nc3 {[%clk 0:01:27]}  Qxe5 {[%clk 0:01:05]} 22. Qxe5 {[%clk 0:01:27]}  Bxe5 {[%clk 0:01:04]} 23. Nd5 {[%clk 0:01:25]}  Rab8 {[%clk 0:00:56]} 24. c3 {[%clk 0:01:24]}  Rb7 {[%clk 0:00:53]} 25. f4 {[%clk 0:01:16]}  c6 {[%clk 0:00:38]} 26. fxe5 {[%clk 0:01:11]}  cxd5 {[%clk 0:00:37]} 27. exd6 {[%clk 0:01:06]}  Rfb8 {[%clk 0:00:31]} 28. Rd2 {[%clk 0:01:05]}  Rb6 {[%clk 0:00:23]} 29. d7 {[%clk 0:01:04]}  R6b7 {[%clk 0:00:19]} 30. Rh4 {[%clk 0:01:00]}  d4 {[%clk 0:00:18]} 31. Rhxd4 {[%clk 0:00:58]}  Rd8 {[%clk 0:00:17]} 32. Rxa4 {[%clk 0:00:57]}  Kf8 {[%clk 0:00:17]} 33. Rad4 {[%clk 0:00:55]}  Ke7 {[%clk 0:00:16]} 34. a4 {[%clk 0:00:54]}  Kf6 {[%clk 0:00:13]} 35. Rd5 {[%clk 0:00:49]}  g5 {[%clk 0:00:11]} 36. Kc2 {[%clk 0:00:47]}  Kg6 {[%clk 0:00:09]} 37. Rd6+ {[%clk 0:00:47]}  Kh5 {[%clk 0:00:05]} 38. a5 {[%clk 0:00:47]}  Ra7 {[%clk 0:00:03]} 39. b4 {[%clk 0:00:47]} 1-0


[Site "https://www.chess.com"]